[Event "Live Chess"]
[Site "Chess.com"]
[Date "2024.06.01"]
[Round "-"]
[White "AndrewBak1"]
[Black "oscalik"]
[Result "0-1"]
[WhiteElo "1829"]
[BlackElo "2340"]
[TimeControl "300"]
[EndTime "13:25:23 PDT"]
[Termination "oscalik won on time"]

1. e4 {[%clk 0:04:58]} 1... c5 {[%clk 0:04:58]} 2. Nf3 {[%clk 0:04:55.9]} 2...
Nf6 {[%clk 0:04:57.4]} 3. Nc3 {[%clk 0:04:49.7]} 3... d5 {[%clk 0:04:55.5]} 4.
exd5 {[%clk 0:04:46.6]} 4... Nxd5 {[%clk 0:04:54.1]} 5. Bc4 {[%clk 0:04:44.4]}
5... e6 {[%clk 0:04:40.7]} 6. O-O {[%clk 0:04:40.9]} 6... Be7 {[%clk 0:04:39.6]}
7. d4 {[%clk 0:04:31.2]} 7... Nb6 {[%clk 0:04:24]} 8. Bb5+ {[%clk 0:04:24.3]}
8... Bd7 {[%clk 0:04:21.3]} 9. dxc5 {[%clk 0:04:12.1]} 9... Bxc5 {[%clk
0:04:11.5]} 10. Bxd7+ {[%clk 0:04:09.5]} 10... N8xd7 {[%clk 0:04:09.6]} 11. Ne4
{[%clk 0:04:08.3]} 11... O-O {[%clk 0:04:01.8]} 12. Nxc5 {[%clk 0:04:04]} 12...
Nxc5 {[%clk 0:04:00.4]} 13. Be3 {[%clk 0:04:02.1]} 13... Rc8 {[%clk 0:03:50.7]}
14. Ng5 {[%clk 0:02:57.8]} 14... h6 {[%clk 0:03:42.4]} 15. Nf3 {[%clk
0:02:43.6]} 15... Nca4 {[%clk 0:03:34.6]} 16. b3 {[%clk 0:02:37.2]} 16... Qxd1
{[%clk 0:03:28.7]} 17. Rfxd1 {[%clk 0:02:33.7]} 17... Nc3 {[%clk 0:03:28.6]} 18.
Rd3 {[%clk 0:02:29.9]} 18... Ncd5 {[%clk 0:03:24.3]} 19. c4 {[%clk 0:02:21.8]}
19... Nxe3 {[%clk 0:03:21.7]} 20. Rxe3 {[%clk 0:02:09.7]} 20... Rfd8 {[%clk
0:03:21.6]} 21. Ree1 {[%clk 0:02:09]} 21... a5 {[%clk 0:03:18]} 22. Red1 {[%clk
0:02:05.2]} 22... Kf8 {[%clk 0:03:16.5]} 23. Kf1 {[%clk 0:01:58.9]} 23... Ke7
{[%clk 0:03:14.2]} 24. Ke2 {[%clk 0:01:58.2]} 24... a4 {[%clk 0:03:13.6]} 25.
Rxd8 {[%clk 0:01:36.3]} 25... Rxd8 {[%clk 0:03:11.1]} 26. Rd1 {[%clk 0:01:36]}
26... Ra8 {[%clk 0:03:08.3]} 27. Nd4 {[%clk 0:01:22.3]} 27... axb3 {[%clk
0:03:08.2]} 28. axb3 {[%clk 0:01:21.6]} 28... Nd7 {[%clk 0:02:53.5]} 29. b4
{[%clk 0:01:10.7]} 29... Ra4 {[%clk 0:02:48]} 30. Rb1 {[%clk 0:01:09.5]} 30...
Ne5 {[%clk 0:02:45]} 31. c5 {[%clk 0:01:08.3]} 31... Ra2+ {[%clk 0:02:40.2]} 32.
Kf1 {[%clk 0:01:02.7]} 32... Nd3 {[%clk 0:02:35.8]} 33. Ne2 {[%clk 0:01:00.2]}
33... e5 {[%clk 0:02:30.1]} 34. f3 {[%clk 0:00:49.8]} 34... Rc2 {[%clk 0:02:20]}
35. Rd1 {[%clk 0:00:48.1]} 35... Nxb4 {[%clk 0:02:15.2]} 36. Ng3 {[%clk
0:00:42.8]} 36... Rxc5 {[%clk 0:02:07.7]} 37. Rb1 {[%clk 0:00:41.4]} 37... Rc4
{[%clk 0:01:56.1]} 38. Ne4 {[%clk 0:00:39.4]} 38... b6 {[%clk 0:01:47.5]} 39.
Nd2 {[%clk 0:00:37.7]} 39... Rd4 {[%clk 0:01:37.3]} 40. Nb3 {[%clk 0:00:34.4]}
40... Rd5 {[%clk 0:01:25.3]} 41. Rc1 {[%clk 0:00:30.7]} 41... Nd3 {[%clk
0:01:20.8]} 42. Rc7+ {[%clk 0:00:28.8]} 42... Rd7 {[%clk 0:01:20.5]} 43. Rc6
{[%clk 0:00:27]} 43... Rd6 {[%clk 0:01:17.2]} 44. Rc7+ {[%clk 0:00:26]} 44...
Ke6 {[%clk 0:01:16.8]} 45. Nd2 {[%clk 0:00:21.9]} 45... Nc5 {[%clk 0:01:07.2]}
46. Nc4 {[%clk 0:00:20]} 46... Rd1+ {[%clk 0:00:59.9]} 47. Ke2 {[%clk
0:00:18.1]} 47... Rb1 {[%clk 0:00:43.7]} 48. Rc6+ {[%clk 0:00:16.9]} 48... Kd5
{[%clk 0:00:42]} 49. Rxb6 {[%clk 0:00:16.1]} 49... Rh1 {[%clk 0:00:27.7]} 50.
Ne3+ {[%clk 0:00:13.8]} 50... Kd4 {[%clk 0:00:23.7]} 51. Rb4+ {[%clk 0:00:13]}
51... Kc3 {[%clk 0:00:22.9]} 52. Rc4+ {[%clk 0:00:12.7]} 52... Kb3 {[%clk
0:00:21.9]} 53. Rxc5 {[%clk 0:00:12.4]} 53... Rxh2 {[%clk 0:00:21.3]} 54. Rxe5
{[%clk 0:00:11.8]} 54... f6 {[%clk 0:00:19.9]} 55. Re7 {[%clk 0:00:10.9]} 55...
g5 {[%clk 0:00:18.9]} 56. Re6 {[%clk 0:00:10.3]} 56... h5 {[%clk 0:00:18.1]} 57.
Rxf6 {[%clk 0:00:09.6]} 57... h4 {[%clk 0:00:18]} 58. Rg6 {[%clk 0:00:08.7]}
58... h3 {[%clk 0:00:17.5]} 59. Rxg5 {[%clk 0:00:05.9]} 59... hxg2 {[%clk
0:00:17.4]} 60. Rxg2 {[%clk 0:00:04.4]} 60... Rh8 {[%clk 0:00:17.2]} 61. Rg4
{[%clk 0:00:03.6]} 61... Kb2 {[%clk 0:00:16.2]} 62. Rd4 {[%clk 0:00:03.5]} 62...
Kc3 {[%clk 0:00:14.8]} 63. Rd2 {[%clk 0:00:03.4]} 63... Kb4 {[%clk 0:00:14]} 64.
Rd3 {[%clk 0:00:03.3]} 64... Ka5 {[%clk 0:00:13.4]} 65. Nc2 {[%clk 0:00:03]}
65... Ka6 {[%clk 0:00:12.6]} 66. Rb3 {[%clk 0:00:02.7]} 66... Re8+ {[%clk
0:00:11.7]} 67. Kd3 {[%clk 0:00:02.6]} 67... Rd8+ {[%clk 0:00:11.2]} 68. Kc4
{[%clk 0:00:02.5]} 68... Rc8+ {[%clk 0:00:10.6]} 69. Kb4 {[%clk 0:00:01.8]}
69... Rxc2 {[%clk 0:00:09.6]} 70. Ka3 {[%clk 0:00:01.7]} 70... Rf2 {[%clk
0:00:08]} 71. Rb4 {[%clk 0:00:01.6]} 71... Ka5 {[%clk 0:00:07.3]} 72. Rf4 {[%clk
0:00:00.4]} 72... Re2 {[%clk 0:00:06.4]} 73. Rf5+ {[%clk 0:00:00.3]} 73... Kb6
{[%clk 0:00:05.8]} 0-1

[Event "Live Chess"]
[Site "Chess.com"]
[Date "2024.06.01"]
[Round "-"]
[White "Tushinskiy"]
[Black "bobby_jamesFischer86"]
[Result "1-0"]
[WhiteElo "2267"]
[BlackElo "1614"]
[TimeControl "300"]
[EndTime "13:25:34 PDT"]
[Termination "Tushinskiy won by resignation"]

1. d4 {[%clk 0:04:51.8]} 1... d5 {[%clk 0:04:58.7]} 2. c3 {[%clk 0:04:51.7]}
2... c6 {[%clk 0:04:57.8]} 3. Nf3 {[%clk 0:04:51.5]} 3... Nf6 {[%clk 0:04:56.6]}
4. Bf4 {[%clk 0:04:51]} 4... e6 {[%clk 0:04:55.9]} 5. Bg3 {[%clk 0:04:50.2]}
5... Bd6 {[%clk 0:04:55.4]} 6. Nbd2 {[%clk 0:04:49]} 6... O-O {[%clk 0:04:54]}
7. Qc2 {[%clk 0:04:47.5]} 7... Qc7 {[%clk 0:04:53]} 8. e4 {[%clk 0:04:46.9]}
8... dxe4 {[%clk 0:04:51.8]} 9. Nxe4 {[%clk 0:04:46.8]} 9... Nxe4 {[%clk
0:04:51]} 10. Qxe4 {[%clk 0:04:46.7]} 10... f5 {[%clk 0:04:48.4]} 11. Qc2 {[%clk
0:04:44.1]} 11... Nd7 {[%clk 0:04:46.8]} 12. Bc4 {[%clk 0:04:43.3]} 12... Nf6
{[%clk 0:04:41.9]} 13. O-O {[%clk 0:04:42.3]} 13... b5 {[%clk 0:04:40.1]} 14.
Bb3 {[%clk 0:04:41.3]} 14... a5 {[%clk 0:04:39]} 15. a3 {[%clk 0:04:40.1]} 15...
Kh8 {[%clk 0:04:37.3]} 16. Rae1 {[%clk 0:04:38.4]} 16... Bxg3 {[%clk 0:04:35.1]}
17. fxg3 {[%clk 0:04:36.7]} 17... Ne4 {[%clk 0:04:31]} 18. Ne5 {[%clk
0:04:33.4]} 18... Bd7 {[%clk 0:04:25.3]} 19. Rf3 {[%clk 0:04:27.6]} 19... Rae8
{[%clk 0:04:23.1]} 20. Ref1 {[%clk 0:04:26.2]} 20... a4 {[%clk 0:04:19.4]} 21.
Ba2 {[%clk 0:04:23.3]} 21... Ng5 {[%clk 0:04:18.2]} 22. Rf4 {[%clk 0:04:21]}
22... Nf7 {[%clk 0:04:11.8]} 23. Nxf7+ {[%clk 0:04:17.2]} 23... Rxf7 {[%clk
0:04:10.4]} 24. g4 {[%clk 0:04:15]} 24... Ref8 {[%clk 0:04:07.6]} 25. gxf5
{[%clk 0:04:13.3]} 25... Rxf5 {[%clk 0:04:04]} 26. Rxf5 {[%clk 0:04:12.3]} 26...
exf5 {[%clk 0:04:02.7]} 27. Qf2 {[%clk 0:04:07.4]} 27... f4 {[%clk 0:03:59.8]}
28. Qh4 {[%clk 0:03:57.7]} 28... Qd6 {[%clk 0:03:44]} 29. Bb1 {[%clk 0:03:55.7]}
29... h6 {[%clk 0:03:34.5]} 30. Be4 {[%clk 0:03:43.9]} 30... Qf6 {[%clk
0:03:17.2]} 31. Qf2 {[%clk 0:03:33.3]} 31... g5 {[%clk 0:03:09.8]} 32. Bf3
{[%clk 0:03:24.4]} 32... g4 {[%clk 0:03:03.6]} 33. Be4 {[%clk 0:03:22.9]} 33...
f3 {[%clk 0:03:01.8]} 34. gxf3 {[%clk 0:03:18]} 34... gxf3 {[%clk 0:02:58]} 35.
Bxf3 {[%clk 0:03:14.8]} 35... Qg5+ {[%clk 0:02:31.3]} 36. Qg2 {[%clk 0:02:57.8]}
36... Qxg2+ {[%clk 0:02:26.7]} 37. Bxg2 {[%clk 0:02:56.7]} 37... Rxf1+ {[%clk
0:02:25]} 38. Kxf1 {[%clk 0:02:56.6]} 38... Kg7 {[%clk 0:02:22.4]} 39. Kf2
{[%clk 0:02:55.8]} 39... Kf6 {[%clk 0:02:21.4]} 40. Ke3 {[%clk 0:02:55.1]} 40...
h5 {[%clk 0:02:09.7]} 41. Kf4 {[%clk 0:02:52.5]} 41... Be8 {[%clk 0:02:02.5]}
42. Bf3 {[%clk 0:02:48]} 42... Kg6 {[%clk 0:01:50.2]} 43. Ke5 {[%clk 0:02:46.7]}
43... Kg5 {[%clk 0:01:47.6]} 44. Kd6 {[%clk 0:02:45.9]} 44... Kf4 {[%clk
0:01:46.3]} 45. Bxc6 {[%clk 0:02:45]} 45... Bxc6 {[%clk 0:01:44.7]} 46. Kxc6
{[%clk 0:02:44.9]} 46... Kg4 {[%clk 0:01:44.1]} 47. d5 {[%clk 0:02:44.7]} 47...
Kh3 {[%clk 0:01:43.2]} 48. d6 {[%clk 0:02:44.6]} 48... Kxh2 {[%clk 0:01:43.1]}
49. d7 {[%clk 0:02:44.5]} 1-0

[Event "Live Chess"]
[Site "Chess.com"]
[Date "2024.06.01"]
[Round "-"]
[White "FMOlexandrProhorov"]
[Black "Eva3337"]
[Result "1-0"]
[WhiteElo "2356"]
[BlackElo "1169"]
[TimeControl "300"]
[EndTime "13:26:01 PDT"]
[Termination "FMOlexandrProhorov won by resignation"]

1. e4 {[%clk 0:04:52.8]} 1... Nc6 {[%clk 0:04:52.9]} 2. d4 {[%clk 0:04:50]} 2...
d6 {[%clk 0:04:51.4]} 3. Nc3 {[%clk 0:04:43.6]} 3... e6 {[%clk 0:04:48]} 4. f4
{[%clk 0:04:41]} 4... Nge7 {[%clk 0:04:31.1]} 5. Nf3 {[%clk 0:04:40.9]} 5... g6
{[%clk 0:04:29.7]} 6. Bd3 {[%clk 0:04:37.9]} 6... Bg7 {[%clk 0:04:28.2]} 7. Be3
{[%clk 0:04:34.8]} 7... O-O {[%clk 0:04:26.9]} 8. O-O {[%clk 0:04:33.3]} 8... f5
{[%clk 0:04:13]} 9. Qd2 {[%clk 0:04:31]} 9... fxe4 {[%clk 0:04:11.2]} 10. Nxe4
{[%clk 0:04:29.8]} 10... d5 {[%clk 0:04:06.4]} 11. Neg5 {[%clk 0:04:27.5]} 11...
Nf5 {[%clk 0:04:00.9]} 12. Rae1 {[%clk 0:04:24.2]} 12... Nxe3 {[%clk 0:03:57.1]}
13. Qxe3 {[%clk 0:04:23.4]} 13... Nb4 {[%clk 0:03:53.9]} 14. c3 {[%clk
0:04:19.8]} 14... Nxd3 {[%clk 0:03:51.5]} 15. Qxd3 {[%clk 0:04:19.1]} 15... h6
{[%clk 0:03:44.5]} 16. Nh3 {[%clk 0:04:17.4]} 16... Kh8 {[%clk 0:03:38.4]} 17.
Qxg6 {[%clk 0:04:15]} 17... Rf6 {[%clk 0:03:25.5]} 18. Qh5 {[%clk 0:04:10.4]}
18... Bd7 {[%clk 0:03:22.1]} 19. Ne5 {[%clk 0:04:06.8]} 19... Be8 {[%clk
0:03:19.9]} 20. Qe2 {[%clk 0:03:43.9]} 20... Rf5 {[%clk 0:03:07.5]} 21. g4
{[%clk 0:03:33.5]} 21... Rf6 {[%clk 0:03:02.1]} 22. g5 {[%clk 0:03:21.4]} 22...
hxg5 {[%clk 0:02:36.5]} 23. Nxg5 {[%clk 0:03:17.8]} 23... Bg6 {[%clk 0:02:05.4]}
24. Nxg6+ {[%clk 0:03:10.2]} 24... Rxg6 {[%clk 0:02:03.7]} 25. Qh5+ {[%clk
0:03:10.1]} 25... Rh6 {[%clk 0:02:01.4]} 26. Nf7+ {[%clk 0:03:03.9]} 1-0

[Event "Live Chess"]
[Site "Chess.com"]
[Date "2024.06.01"]
[Round "-"]
[White "Isambard_Thomas"]
[Black "StoreySniper"]
[Result "1/2-1/2"]
[WhiteElo "2173"]
[BlackElo "2531"]
[TimeControl "300"]
[EndTime "13:26:13 PDT"]
[Termination "Game drawn by agreement"]

1. d4 {[%clk 0:04:59.5]} 1... g6 {[%clk 0:04:58.8]} 2. Nf3 {[%clk 0:04:58.8]}
2... Bg7 {[%clk 0:04:57]} 3. Bg5 {[%clk 0:04:58.4]} 3... c5 {[%clk 0:04:56.3]}
4. c3 {[%clk 0:04:56.1]} 4... Qb6 {[%clk 0:04:54.4]} 5. b3 {[%clk 0:04:54.8]}
5... cxd4 {[%clk 0:04:52.4]} 6. cxd4 {[%clk 0:04:50.7]} 6... Nc6 {[%clk
0:04:49.8]} 7. e3 {[%clk 0:04:49.5]} 7... d6 {[%clk 0:04:44.5]} 8. Bd3 {[%clk
0:04:45.5]} 8... Bg4 {[%clk 0:04:43.3]} 9. h4 {[%clk 0:04:44.7]} 9... Nb4 {[%clk
0:04:33.9]} 10. a3 {[%clk 0:04:27.8]} 10... Nxd3+ {[%clk 0:04:32.4]} 11. Qxd3
{[%clk 0:04:25.8]} 11... Nf6 {[%clk 0:04:29.7]} 12. Nbd2 {[%clk 0:04:20.8]}
12... O-O {[%clk 0:04:25.9]} 13. O-O {[%clk 0:04:15]} 13... Rfe8 {[%clk
0:04:20.4]} 14. Rac1 {[%clk 0:03:47.9]} 14... Rad8 {[%clk 0:04:18.7]} 15. b4
{[%clk 0:03:45.8]} 15... e5 {[%clk 0:04:17]} 16. Ne4 {[%clk 0:03:39.2]} 16...
Bxf3 {[%clk 0:04:01.1]} 17. Nxf6+ {[%clk 0:03:29.8]} 17... Bxf6 {[%clk
0:03:59.6]} 18. Bxf6 {[%clk 0:03:26.9]} 18... Bc6 {[%clk 0:03:29.9]} 19. Bxd8
{[%clk 0:03:23]} 19... Qxd8 {[%clk 0:03:17.9]} 20. b5 {[%clk 0:03:07.9]} 20...
Bxg2 {[%clk 0:02:45.2]} 21. Kxg2 {[%clk 0:02:58.3]} 21... Qxh4 {[%clk
0:02:44.4]} 22. f3 {[%clk 0:02:57.6]} 22... e4 {[%clk 0:02:37.1]} 23. fxe4
{[%clk 0:02:53.9]} 23... Rxe4 {[%clk 0:02:35.2]} 24. Rc8+ {[%clk 0:02:49.4]}
24... Kg7 {[%clk 0:02:33.7]} 25. Rc7 {[%clk 0:02:03.4]} 25... Rg4+ {[%clk
0:02:27.2]} 26. Kf3 {[%clk 0:01:56.3]} 26... Rg3+ {[%clk 0:02:04.8]} 27. Ke2
{[%clk 0:01:54.8]} 27... Rg2+ {[%clk 0:01:31.9]} 28. Kd1 {[%clk 0:01:53.7]}
28... Ra2 {[%clk 0:01:19.2]} 29. Rfxf7+ {[%clk 0:01:41.2]} 29... Kg8 {[%clk
0:01:18.1]} 30. Qb3 {[%clk 0:01:35.2]} 30... Ra1+ {[%clk 0:01:06.1]} 31. Kc2
{[%clk 0:01:23.2]} 31... Qe4+ {[%clk 0:01:02.6]} 32. Kd2 {[%clk 0:01:15.1]}
32... d5 {[%clk 0:00:59.5]} 33. Rg7+ {[%clk 0:01:09.6]} 33... Kh8 {[%clk
0:00:58.6]} 34. Rxh7+ {[%clk 0:01:08.4]} 34... Kg8 {[%clk 0:00:57.8]} 35. Rcg7+
{[%clk 0:01:03.3]} 35... Kf8 {[%clk 0:00:56.6]} 36. Rf7+ {[%clk 0:00:55.5]}
36... Kg8 {[%clk 0:00:55.1]} 1/2-1/2

[Event "Live Chess"]
[Site "Chess.com"]
[Date "2024.06.01"]
[Round "-"]
[White "NottheBishopSacrifice"]
[Black "peteopeteo"]
[Result "1-0"]
[WhiteElo "2260"]
[BlackElo "1584"]
[TimeControl "300"]
[EndTime "13:26:27 PDT"]
[Termination "NottheBishopSacrifice won by checkmate"]

1. d4 {[%clk 0:04:57.4]} 1... d5 {[%clk 0:04:59.2]} 2. Nf3 {[%clk 0:04:57]} 2...
Nf6 {[%clk 0:04:58.3]} 3. c4 {[%clk 0:04:56.5]} 3... c6 {[%clk 0:04:56.9]} 4. e3
{[%clk 0:04:55.7]} 4... Bg4 {[%clk 0:04:55.9]} 5. Be2 {[%clk 0:04:55.3]} 5... e6
{[%clk 0:04:52.6]} 6. O-O {[%clk 0:04:54.6]} 6... Bd6 {[%clk 0:04:51.7]} 7. b3
{[%clk 0:04:53.7]} 7... Nbd7 {[%clk 0:04:46.1]} 8. Bb2 {[%clk 0:04:52.1]} 8...
h6 {[%clk 0:04:38.7]} 9. h3 {[%clk 0:04:51]} 9... Bf5 {[%clk 0:04:37.2]} 10.
Nbd2 {[%clk 0:04:49.6]} 10... Ne4 {[%clk 0:04:33.4]} 11. Nxe4 {[%clk 0:04:48.1]}
11... Bxe4 {[%clk 0:04:33.3]} 12. Nd2 {[%clk 0:04:46.4]} 12... Bf5 {[%clk
0:04:31.1]} 13. Bf3 {[%clk 0:04:45.4]} 13... Qc7 {[%clk 0:04:23.9]} 14. e4
{[%clk 0:04:43]} 14... dxe4 {[%clk 0:04:21.9]} 15. Nxe4 {[%clk 0:04:41]} 15...
Bxe4 {[%clk 0:04:13.6]} 16. Bxe4 {[%clk 0:04:40.9]} 16... Nf6 {[%clk 0:04:08.6]}
17. Bf3 {[%clk 0:04:39.5]} 17... O-O {[%clk 0:03:56.4]} 18. Qc2 {[%clk 0:04:37]}
18... Rad8 {[%clk 0:03:52.9]} 19. Rad1 {[%clk 0:04:35.8]} 19... Be7 {[%clk
0:03:51.9]} 20. Rfe1 {[%clk 0:04:33.9]} 20... Nd7 {[%clk 0:03:44.3]} 21. Qb1
{[%clk 0:04:30.6]} 21... Bf6 {[%clk 0:03:42.7]} 22. d5 {[%clk 0:04:29.1]} 22...
cxd5 {[%clk 0:03:42.6]} 23. cxd5 {[%clk 0:04:26.6]} 23... Bxb2 {[%clk
0:03:40.2]} 24. Qxb2 {[%clk 0:04:25.1]} 24... exd5 {[%clk 0:03:28.6]} 25. Bxd5
{[%clk 0:04:23.1]} 25... Nf6 {[%clk 0:03:27]} 26. Bf3 {[%clk 0:04:22.3]} 26...
Rfe8 {[%clk 0:03:21]} 27. Rxe8+ {[%clk 0:04:19.7]} 27... Rxe8 {[%clk 0:03:20.9]}
28. Qd4 {[%clk 0:04:18]} 28... Qa5 {[%clk 0:03:13.8]} 29. a4 {[%clk 0:04:14.2]}
29... Qf5 {[%clk 0:02:57.8]} 30. Qxa7 {[%clk 0:04:08.1]} 30... Ne4 {[%clk
0:02:46]} 31. Bxe4 {[%clk 0:04:04.4]} 31... Qxe4 {[%clk 0:02:45.9]} 32. Qd4
{[%clk 0:04:01.7]} 32... Qe2 {[%clk 0:02:41.8]} 33. Qd2 {[%clk 0:03:53.9]} 33...
Qe6 {[%clk 0:02:39.7]} 34. Qd3 {[%clk 0:03:49.8]} 34... Qe5 {[%clk 0:02:32.8]}
35. b4 {[%clk 0:03:46.4]} 35... Qb2 {[%clk 0:02:30.2]} 36. b5 {[%clk 0:03:44.6]}
36... Re2 {[%clk 0:02:28.8]} 37. Qd8+ {[%clk 0:03:40.1]} 37... Kh7 {[%clk
0:02:28.1]} 38. Qd3+ {[%clk 0:03:39.8]} 38... g6 {[%clk 0:02:26]} 39. Qf3 {[%clk
0:03:37.2]} 39... Kg7 {[%clk 0:02:17.8]} 40. Rd7 {[%clk 0:03:32.4]} 40... Qa2
{[%clk 0:02:10.7]} 41. Qc3+ {[%clk 0:03:28.6]} 41... Kf8 {[%clk 0:02:02.5]} 42.
Rd8+ {[%clk 0:03:27.8]} 42... Ke7 {[%clk 0:01:59.6]} 43. Qc7+ {[%clk 0:03:27.2]}
43... Kf6 {[%clk 0:01:58.5]} 44. Qf4+ {[%clk 0:03:24]} 44... Kg7 {[%clk
0:01:56.9]} 45. Qd4+ {[%clk 0:03:23.3]} 45... f6 {[%clk 0:01:46.1]} 46. Qd7+
{[%clk 0:03:20.7]} 46... Qf7 {[%clk 0:01:45]} 47. Qxf7+ {[%clk 0:03:19.5]} 47...
Kxf7 {[%clk 0:01:44.9]} 48. Rd7+ {[%clk 0:03:18.5]} 48... Ke6 {[%clk 0:01:43.5]}
49. Rxb7 {[%clk 0:03:17.2]} 49... Ra2 {[%clk 0:01:42.3]} 50. Ra7 {[%clk
0:03:16]} 50... Kd6 {[%clk 0:01:37.9]} 51. Ra6+ {[%clk 0:03:14.8]} 51... Ke5
{[%clk 0:01:36.1]} 52. b6 {[%clk 0:03:13.3]} 52... Kd6 {[%clk 0:01:32.5]} 53. a5
{[%clk 0:03:11.9]} 53... Kc6 {[%clk 0:01:31.3]} 54. b7+ {[%clk 0:03:10.3]} 54...
Kxb7 {[%clk 0:01:30]} 55. Rxf6 {[%clk 0:03:09.9]} 55... Rxa5 {[%clk 0:01:29.4]}
56. Rxg6 {[%clk 0:03:08.8]} 56... Ra1+ {[%clk 0:01:28.6]} 57. Kh2 {[%clk
0:03:07.1]} 57... Ra6 {[%clk 0:01:27.9]} 58. Rxa6 {[%clk 0:03:04.9]} 58... Kxa6
{[%clk 0:01:27.8]} 59. h4 {[%clk 0:03:04.3]} 59... Kb7 {[%clk 0:01:27.6]} 60. g4
{[%clk 0:03:04]} 60... Kc7 {[%clk 0:01:27.5]} 61. g5 {[%clk 0:03:03.8]} 61...
hxg5 {[%clk 0:01:26.6]} 62. hxg5 {[%clk 0:03:03.7]} 62... Kd7 {[%clk 0:01:26.3]}
63. f4 {[%clk 0:03:03]} 63... Ke7 {[%clk 0:01:26.2]} 64. Kg3 {[%clk 0:03:02.1]}
64... Kf7 {[%clk 0:01:26.1]} 65. Kg4 {[%clk 0:03:02]} 65... Kg6 {[%clk 0:01:26]}
66. f5+ {[%clk 0:03:01.5]} 66... Kf7 {[%clk 0:01:25.6]} 67. Kf4 {[%clk
0:03:01.4]} 67... Kg7 {[%clk 0:01:25.5]} 68. Ke5 {[%clk 0:03:01.1]} 68... Kf7
{[%clk 0:01:25.4]} 69. g6+ {[%clk 0:02:59.6]} 69... Ke7 {[%clk 0:01:25.3]} 70.
f6+ {[%clk 0:02:58.6]} 70... Kf8 {[%clk 0:01:25.2]} 71. Ke6 {[%clk 0:02:58.5]}
71... Kg8 {[%clk 0:01:24.8]} 72. g7 {[%clk 0:02:53.6]} 72... Kh7 {[%clk
0:01:20.2]} 73. Kf7 {[%clk 0:02:53.1]} 73... Kh6 {[%clk 0:01:19.2]} 74. g8=Q
{[%clk 0:02:52.8]} 74... Kh5 {[%clk 0:01:18.6]} 75. Ke6 {[%clk 0:02:51]} 75...
Kh4 {[%clk 0:01:17.8]} 76. f7 {[%clk 0:02:48.6]} 76... Kh3 {[%clk 0:01:17.7]}
77. f8=Q {[%clk 0:02:47.5]} 77... Kh2 {[%clk 0:01:09.4]} 78. Qh6# {[%clk
0:02:47.4]} 1-0

[Event "Live Chess"]
[Site "Chess.com"]
[Date "2024.06.01"]
[Round "-"]
[White "GwaryTek"]
[Black "GerardATHart"]
[Result "1-0"]
[WhiteElo "1923"]
[BlackElo "1403"]
[TimeControl "300"]
[EndTime "13:26:30 PDT"]
[Termination "GwaryTek won - game abandoned"]

1. d4 {[%clk 0:04:56.5]} 1... f5 {[%clk 0:04:58]} 2. Nf3 {[%clk 0:04:54]} 2...
Nf6 {[%clk 0:04:56.5]} 3. h3 {[%clk 0:04:53]} 3... d6 {[%clk 0:04:49.4]} 4. Nc3
{[%clk 0:04:50.7]} 4... g6 {[%clk 0:04:47.9]} 5. Qd3 {[%clk 0:04:48.2]} 5... Bg7
{[%clk 0:04:35.7]} 6. Bg5 {[%clk 0:04:45.5]} 6... h6 {[%clk 0:04:30.8]} 7. Bxf6
{[%clk 0:04:31.6]} 7... Bxf6 {[%clk 0:04:29]} 8. g4 {[%clk 0:04:31.5]} 8... fxg4
{[%clk 0:04:21.8]} 9. Qxg6+ {[%clk 0:04:27.4]} 9... Kf8 {[%clk 0:04:15.8]} 10.
hxg4 {[%clk 0:04:21.2]} 10... Be6 {[%clk 0:04:00.5]} 11. Rxh6 {[%clk 0:04:15.8]}
11... Rxh6 {[%clk 0:03:38.2]} 12. Qxh6+ {[%clk 0:04:13.7]} 12... Bg7 {[%clk
0:03:36.7]} 13. Qf4+ {[%clk 0:04:12.1]} 13... Bf7 {[%clk 0:03:34.6]} 14. Ng5
{[%clk 0:04:09.9]} 14... Qe8 {[%clk 0:03:32.5]} 15. e4 {[%clk 0:03:53.7]} 15...
Nd7 {[%clk 0:03:23.9]} 16. Bc4 {[%clk 0:03:50.4]} 16... e5 {[%clk 0:03:17.4]}
17. Qxf7+ {[%clk 0:03:46.3]} 17... Qxf7 {[%clk 0:03:15.8]} 18. Nxf7 {[%clk
0:03:41.5]} 18... exd4 {[%clk 0:03:04]} 19. Nb5 {[%clk 0:03:35.1]} 19... c6
{[%clk 0:03:00.2]} 20. Nbxd6 {[%clk 0:03:32.9]} 20... b5 {[%clk 0:02:47.5]} 21.
Bb3 {[%clk 0:03:23.2]} 21... a5 {[%clk 0:02:42.9]} 22. a4 {[%clk 0:03:21.1]} 1-0

[Event "Live Chess"]
[Site "Chess.com"]
[Date "2024.06.01"]
[Round "-"]
[White "uselessduffer"]
[Black "gobbles19"]
[Result "0-1"]
[WhiteElo "2371"]
[BlackElo "2241"]
[TimeControl "300"]
[EndTime "13:26:39 PDT"]
[Termination "gobbles19 won by resignation"]

1. e4 {[%clk 0:04:54.9]} 1... d6 {[%clk 0:04:58.4]} 2. d4 {[%clk 0:04:53.3]}
2... Nf6 {[%clk 0:04:57.6]} 3. Nc3 {[%clk 0:04:51.5]} 3... g6 {[%clk 0:04:54.2]}
4. Be3 {[%clk 0:04:48.7]} 4... Bg7 {[%clk 0:04:52.5]} 5. Nf3 {[%clk 0:04:47.9]}
5... c6 {[%clk 0:04:45.7]} 6. Qd2 {[%clk 0:04:42.4]} 6... b5 {[%clk 0:04:43]} 7.
Bd3 {[%clk 0:04:40.5]} 7... Nbd7 {[%clk 0:04:40.9]} 8. Bh6 {[%clk 0:04:37.1]}
8... Bxh6 {[%clk 0:04:37.3]} 9. Qxh6 {[%clk 0:04:37]} 9... Qc7 {[%clk 0:04:31]}
10. O-O {[%clk 0:03:29.2]} 10... e5 {[%clk 0:04:19.9]} 11. dxe5 {[%clk
0:03:14.7]} 11... dxe5 {[%clk 0:04:19.8]} 12. Rad1 {[%clk 0:03:07.5]} 12... Bb7
{[%clk 0:03:44.3]} 13. Bxb5 {[%clk 0:03:03.2]} 13... cxb5 {[%clk 0:03:34.5]} 14.
Nxb5 {[%clk 0:03:01.4]} 14... Qb6 {[%clk 0:03:33.1]} 15. Nd6+ {[%clk 0:02:45.4]}
15... Ke7 {[%clk 0:03:29.9]} 16. Qg7 {[%clk 0:02:39.1]} 16... Raf8 {[%clk
0:03:21.8]} 17. Nh4 {[%clk 0:02:27.1]} 17... Rhg8 {[%clk 0:03:14.8]} 18. Nhf5+
{[%clk 0:01:43.2]} 18... gxf5 {[%clk 0:03:12.8]} 19. Nxf5+ {[%clk 0:01:43.1]}
19... Ke6 {[%clk 0:03:03.2]} 20. Qh6 {[%clk 0:01:42.1]} 20... Bxe4 {[%clk
0:02:56.3]} 0-1